[Event "Titled Tuesday Blitz March 21 Late 2023"]
[White "Abduzhaparov"]
[Black "Golubev, Mikhail"]
[BlackFideId "14100983"]
[WhiteElo "2359"]
[BlackElo "2374"]
[Result "1-0"]
[Round "08"]
[TimeControl "180+2"]
[Date "2023.03.21"]
[WhiteClock "0:00:19"]
[BlackClock "0:00:02"]

1. Nf3 {[%clk 0:03:00]}  d6 {[%clk 0:02:59]} 2. c4 {[%clk 0:03:01]}  g6 {[%clk 0:02:55]} 3. d4 {[%clk 0:03:01]}  Bg7 {[%clk 0:02:55]} 4. e4 {[%clk 0:03:02]}  Nf6 {[%clk 0:02:55]} 5. Nc3 {[%clk 0:03:02]}  O-O {[%clk 0:02:56]} 6. Be3 {[%clk 0:03:03]}  e5 {[%clk 0:02:55]} 7. dxe5 {[%clk 0:03:04]}  dxe5 {[%clk 0:02:54]} 8. Qxd8 {[%clk 0:03:04]}  Rxd8 {[%clk 0:02:54]} 9. Nd5 {[%clk 0:03:05]}  Na6 {[%clk 0:02:46]} 10. O-O-O {[%clk 0:03:03]}  Bg4 {[%clk 0:02:34]} 11. h3 {[%clk 0:03:02]}  Bxf3 {[%clk 0:02:18]} 12. gxf3 {[%clk 0:03:03]}  c6 {[%clk 0:02:17]} 13. Nxf6+ {[%clk 0:03:02]}  Bxf6 {[%clk 0:02:18]} 14. c5 {[%clk 0:02:50]}  Nc7 {[%clk 0:02:17]} 15. Bc4 {[%clk 0:02:49]}  Ne6 {[%clk 0:02:09]} 16. Bxe6 {[%clk 0:02:46]}  fxe6 {[%clk 0:02:08]} 17. Kc2 {[%clk 0:02:33]}  Kf7 {[%clk 0:02:00]} 18. a4 {[%clk 0:02:28]}  Rxd1 {[%clk 0:01:56]} 19. Rxd1 {[%clk 0:02:26]}  Rd8 {[%clk 0:01:55]} 20. Ra1 {[%clk 0:02:16]}  g5 {[%clk 0:01:48]} 21. b4 {[%clk 0:02:14]}  Kg6 {[%clk 0:01:31]} 22. b5 {[%clk 0:02:09]}  Kh5 {[%clk 0:01:31]} 23. Rg1 {[%clk 0:01:38]}  h6 {[%clk 0:01:03]} 24. Rg4 {[%clk 0:01:30]}  Be7 {[%clk 0:00:54]} 25. Rg1 {[%clk 0:01:10]}  cxb5 {[%clk 0:00:50]} 26. axb5 {[%clk 0:01:09]}  Bxc5 {[%clk 0:00:47]} 27. Ra1 {[%clk 0:00:49]}  Bxe3 {[%clk 0:00:46]} 28. fxe3 {[%clk 0:00:50]}  Kh4 {[%clk 0:00:39]} 29. Rxa7 {[%clk 0:00:48]}  Rd7 {[%clk 0:00:38]} 30. Ra8 {[%clk 0:00:49]}  Kxh3 {[%clk 0:00:37]} 31. Rh8 {[%clk 0:00:49]}  Kg3 {[%clk 0:00:35]} 32. Rxh6 {[%clk 0:00:48]}  Kxf3 {[%clk 0:00:35]} 33. Rxe6 {[%clk 0:00:46]}  Kxe4 {[%clk 0:00:33]} 34. Rg6 {[%clk 0:00:44]}  Kf5 {[%clk 0:00:31]} 35. Rg8 {[%clk 0:00:43]}  g4 {[%clk 0:00:19]} 36. Kc3 {[%clk 0:00:40]}  e4 {[%clk 0:00:12]} 37. Kc4 {[%clk 0:00:40]}  Rd3 {[%clk 0:00:10]} 38. Rg7 {[%clk 0:00:28]}  Rxe3 {[%clk 0:00:08]} 39. Rxb7 {[%clk 0:00:27]}  Re1 {[%clk 0:00:08]} 40. Rf7+ {[%clk 0:00:25]}  Ke5 {[%clk 0:00:08]} 41. Rg7 {[%clk 0:00:24]}  Kf4 {[%clk 0:00:06]} 42. b6 {[%clk 0:00:23]}  Rb1 {[%clk 0:00:05]} 43. b7 {[%clk 0:00:23]}  e3 {[%clk 0:00:03]} 44. Kd3 {[%clk 0:00:21]}  Rb3+ {[%clk 0:00:02]} 45. Ke2 {[%clk 0:00:21]}  Rb2+ {[%clk 0:00:02]} 46. Kd3 {[%clk 0:00:19]} 1-0


[Site "https://www.chess.com"]

[Event "Titled Tuesday Blitz March 21 Late 2023"]
[White "Rose, Felix"]
[Black "Stelmaszyk, Nico"]
[WhiteFideId "5105722"]
[BlackFideId "16200462"]
[WhiteElo "2039"]
[BlackElo "2255"]
[Result "0-1"]
[Round "08"]
[TimeControl "180+2"]
[Date "2023.03.21"]
[WhiteClock "0:00:35"]
[BlackClock "0:01:22"]

1. e4 {[%clk 0:03:00]}  c5 {[%clk 0:02:53]} 2. Nf3 {[%clk 0:03:00]}  Nc6 {[%clk 0:02:53]} 3. d4 {[%clk 0:03:01]}  cxd4 {[%clk 0:02:54]} 4. Nxd4 {[%clk 0:03:01]}  e6 {[%clk 0:02:55]} 5. Nc3 {[%clk 0:03:01]}  Nf6 {[%clk 0:02:55]} 6. Ndb5 {[%clk 0:02:59]}  d6 {[%clk 0:02:55]} 7. Bf4 {[%clk 0:02:58]}  e5 {[%clk 0:02:55]} 8. Bg5 {[%clk 0:02:59]}  a6 {[%clk 0:02:56]} 9. Na3 {[%clk 0:02:59]}  b5 {[%clk 0:02:56]} 10. Nd5 {[%clk 0:03:00]}  Be7 {[%clk 0:02:57]} 11. Bxf6 {[%clk 0:03:00]}  Bxf6 {[%clk 0:02:57]} 12. c3 {[%clk 0:03:01]}  Bg5 {[%clk 0:02:58]} 13. Nc2 {[%clk 0:03:01]}  Rb8 {[%clk 0:02:57]} 14. Be2 {[%clk 0:02:58]}  O-O {[%clk 0:02:56]} 15. O-O {[%clk 0:02:58]}  Kh8 {[%clk 0:02:55]} 16. a4 {[%clk 0:02:54]}  bxa4 {[%clk 0:02:53]} 17. Ncb4 {[%clk 0:02:54]}  Nxb4 {[%clk 0:02:51]} 18. Nxb4 {[%clk 0:02:54]}  Bd7 {[%clk 0:02:48]} 19. Bxa6 {[%clk 0:02:44]}  Qb6 {[%clk 0:02:40]} 20. Bd3 {[%clk 0:02:28]}  g6 {[%clk 0:02:25]} 21. g3 {[%clk 0:02:22]}  f5 {[%clk 0:02:25]} 22. Kg2 {[%clk 0:02:16]}  f4 {[%clk 0:02:25]} 23. Be2 {[%clk 0:02:02]}  Kg7 {[%clk 0:02:13]} 24. Bg4 {[%clk 0:02:01]}  f3+ {[%clk 0:02:05]} 25. Bxf3 {[%clk 0:01:56]}  h5 {[%clk 0:02:05]} 26. h4 {[%clk 0:01:42]}  Be7 {[%clk 0:02:03]} 27. Qd2 {[%clk 0:01:20]}  Rxf3 {[%clk 0:01:56]} 28. Kxf3 {[%clk 0:01:18]}  Bh3 {[%clk 0:01:57]} 29. Rh1 {[%clk 0:00:56]}  Rf8+ {[%clk 0:01:57]} 30. Ke2 {[%clk 0:00:54]}  Rxf2+ {[%clk 0:01:57]} 31. Kd1 {[%clk 0:00:54]}  Bg4+ {[%clk 0:01:51]} 32. Kc1 {[%clk 0:00:53]}  Rxd2 {[%clk 0:01:50]} 33. Kxd2 {[%clk 0:00:53]}  Qf2+ {[%clk 0:01:50]} 34. Kc1 {[%clk 0:00:52]}  Qe3+ {[%clk 0:01:34]} 35. Kb1 {[%clk 0:00:48]}  Qxe4+ {[%clk 0:01:27]} 36. Ka2 {[%clk 0:00:48]}  Be6+ {[%clk 0:01:24]} 37. Ka3 {[%clk 0:00:44]}  d5 {[%clk 0:01:24]} 38. Rae1 {[%clk 0:00:35]}  Qc2 {[%clk 0:01:22]} 0-1


[Site "https://www.chess.com"]

[Event "Titled Tuesday Blitz March 21 Late 2023"]
[White "Becerra, Juan David"]
[Black "Vadim_Galchenko"]
[WhiteFideId "4404998"]
[WhiteElo "2282"]
[BlackElo "2215"]
[Result "0-1"]
[Round "08"]
[TimeControl "180+2"]
[Date "2023.03.21"]
[WhiteClock "0:00:18"]
[BlackClock "0:00:43"]

1. e4 {[%clk 0:02:56]}  e6 {[%clk 0:03:00]} 2. d4 {[%clk 0:02:48]}  d5 {[%clk 0:03:00]} 3. Nc3 {[%clk 0:02:48]}  Nf6 {[%clk 0:03:00]} 4. Bg5 {[%clk 0:02:48]}  Bb4 {[%clk 0:02:59]} 5. e5 {[%clk 0:02:48]}  h6 {[%clk 0:02:59]} 6. Bd2 {[%clk 0:02:47]}  Bxc3 {[%clk 0:02:59]} 7. bxc3 {[%clk 0:02:47]}  Ne4 {[%clk 0:03:00]} 8. Be3 {[%clk 0:02:47]}  c5 {[%clk 0:02:52]} 9. Bd3 {[%clk 0:02:42]}  Nxc3 {[%clk 0:02:50]} 10. Qg4 {[%clk 0:02:42]}  Kf8 {[%clk 0:02:50]} 11. dxc5 {[%clk 0:02:32]}  Nc6 {[%clk 0:02:49]} 12. Nf3 {[%clk 0:02:23]}  f5 {[%clk 0:02:32]} 13. Qg6 {[%clk 0:01:28]}  Ne7 {[%clk 0:02:23]} 14. Qg3 {[%clk 0:01:28]}  g5 {[%clk 0:02:15]} 15. Nxg5 {[%clk 0:01:24]}  hxg5 {[%clk 0:02:16]} 16. Qxg5 {[%clk 0:01:24]}  Nc6 {[%clk 0:02:05]} 17. Qg3 {[%clk 0:01:23]}  Ne4 {[%clk 0:01:54]} 18. Bxe4 {[%clk 0:01:19]}  dxe4 {[%clk 0:01:55]} 19. Bg5 {[%clk 0:01:06]}  Qa5+ {[%clk 0:01:52]} 20. Kf1 {[%clk 0:01:07]}  Qxc5 {[%clk 0:01:46]} 21. Bf6 {[%clk 0:01:03]}  Rg8 {[%clk 0:01:39]} 22. Qf4 {[%clk 0:00:48]}  e3 {[%clk 0:01:15]} 23. Qh6+ {[%clk 0:00:40]}  Ke8 {[%clk 0:01:14]} 24. Qh7 {[%clk 0:00:23]}  Qc4+ {[%clk 0:01:08]} 25. Kg1 {[%clk 0:00:18]}  exf2+ {[%clk 0:00:43]} 26. Kxf2 {[%clk 0:00:19]}  Qxc2+ {[%clk 0:00:43]} 27. Ke3 {[%clk 0:00:19]}  Qe4+ {[%clk 0:00:42]} 28. Kd2 {[%clk 0:00:17]}  Rxg2+ {[%clk 0:00:42]} 29. Kc3 {[%clk 0:00:17]}  Rc2+ {[%clk 0:00:42]} 30. Kb3 {[%clk 0:00:17]}  Qc4+ {[%clk 0:00:43]} 31. Ka3 {[%clk 0:00:18]}  Qb4# {[%clk 0:00:43]} 0-1


[Site "https://www.chess.com"]

[Event "Titled Tuesday Blitz March 21 Late 2023"]
[White "Hon, Eric"]
[Black "Donskov, Anatoly"]
[WhiteFideId "2097117"]
[BlackFideId "24143413"]
[WhiteElo "1918"]
[BlackElo "2247"]
[Result "1-0"]
[Round "08"]
[TimeControl "180+2"]
[Date "2023.03.21"]
[WhiteClock "0:00:10"]
[BlackClock "0:00:05"]

1. e4 {[%clk 0:03:00]}  c5 {[%clk 0:02:59]} 2. Nf3 {[%clk 0:03:00]}  e6 {[%clk 0:03:00]} 3. Nc3 {[%clk 0:03:00]}  Nc6 {[%clk 0:03:00]} 4. d4 {[%clk 0:02:57]}  cxd4 {[%clk 0:03:01]} 5. Nxd4 {[%clk 0:02:58]}  Nf6 {[%clk 0:03:01]} 6. Be3 {[%clk 0:02:55]}  Bb4 {[%clk 0:03:00]} 7. f3 {[%clk 0:02:55]}  d5 {[%clk 0:02:59]} 8. Nxc6 {[%clk 0:02:53]}  bxc6 {[%clk 0:02:59]} 9. e5 {[%clk 0:02:53]}  Nd7 {[%clk 0:02:58]} 10. f4 {[%clk 0:02:54]}  c5 {[%clk 0:02:55]} 11. a3 {[%clk 0:02:54]}  Ba5 {[%clk 0:02:50]} 12. Bd2 {[%clk 0:02:46]}  O-O {[%clk 0:02:34]} 13. Be2 {[%clk 0:02:41]}  c4 {[%clk 0:02:16]} 14. Rb1 {[%clk 0:02:32]}  Bb6 {[%clk 0:01:56]} 15. Bf3 {[%clk 0:02:25]}  f6 {[%clk 0:01:54]} 16. Qe2 {[%clk 0:02:21]}  fxe5 {[%clk 0:01:44]} 17. fxe5 {[%clk 0:02:21]}  Qh4+ {[%clk 0:01:44]} 18. g3 {[%clk 0:02:12]}  Qd4 {[%clk 0:01:44]} 19. Bf4 {[%clk 0:02:03]}  Ba5 {[%clk 0:01:09]} 20. Kf1 {[%clk 0:01:35]}  Bb7 {[%clk 0:00:39]} 21. Nb5 {[%clk 0:01:18]}  Qc5 {[%clk 0:00:26]} 22. Nd6 {[%clk 0:01:18]}  Bc6 {[%clk 0:00:20]} 23. Kg2 {[%clk 0:01:10]}  h6 {[%clk 0:00:10]} 24. h4 {[%clk 0:01:08]}  Rad8 {[%clk 0:00:08]} 25. Rhd1 {[%clk 0:00:56]}  Bc7 {[%clk 0:00:08]} 26. b4 {[%clk 0:00:44]}  cxb3 {[%clk 0:00:07]} 27. cxb3 {[%clk 0:00:44]}  Bxd6 {[%clk 0:00:08]} 28. exd6 {[%clk 0:00:34]}  e5 {[%clk 0:00:08]} 29. Rdc1 {[%clk 0:00:28]}  Qxd6 {[%clk 0:00:07]} 30. Qd2 {[%clk 0:00:15]}  e4 {[%clk 0:00:04]} 31. Bxd6 {[%clk 0:00:14]}  exf3+ {[%clk 0:00:04]} 32. Kh2 {[%clk 0:00:13]}  Nf6 {[%clk 0:00:04]} 33. Bxf8 {[%clk 0:00:12]}  Ng4+ {[%clk 0:00:04]} 34. Kh3 {[%clk 0:00:11]}  Bd7 {[%clk 0:00:04]} 35. Qxd5+ {[%clk 0:00:07]}  Kxf8 {[%clk 0:00:02]} 36. Qxd7 {[%clk 0:00:08]}  Rxd7 {[%clk 0:00:02]} 37. Kxg4 {[%clk 0:00:08]}  f2 {[%clk 0:00:01]} 38. Rf1 {[%clk 0:00:08]}  Rd2 {[%clk 0:00:02]} 39. Kf3 {[%clk 0:00:09]}  Ra2 {[%clk 0:00:01]} 40. Kg2 {[%clk 0:00:10]}  Rxa3 {[%clk 0:00:02]} 41. Rxf2+ {[%clk 0:00:10]}  Kg8 {[%clk 0:00:03]} 42. Rbf1 {[%clk 0:00:11]}  Kh7 {[%clk 0:00:03]} 43. Rf3 {[%clk 0:00:12]}  Ra2+ {[%clk 0:00:03]} 44. R1f2 {[%clk 0:00:13]}  Ra1 {[%clk 0:00:03]} 45. Kh3 {[%clk 0:00:13]}  Rc1 {[%clk 0:00:04]} 46. h5 {[%clk 0:00:13]}  Rc5 {[%clk 0:00:04]} 47. g4 {[%clk 0:00:12]}  a5 {[%clk 0:00:04]} 48. Ra2 {[%clk 0:00:13]}  Rb5 {[%clk 0:00:05]} 49. Kg3 {[%clk 0:00:12]}  Rb4 {[%clk 0:00:05]} 50. Ra4 {[%clk 0:00:13]}  Rb5 {[%clk 0:00:05]} 51. b4 {[%clk 0:00:12]}  axb4 {[%clk 0:00:05]} 52. Rb3 {[%clk 0:00:13]}  Rc5 {[%clk 0:00:05]} 53. Raxb4 {[%clk 0:00:13]}  Rd5 {[%clk 0:00:05]} 54. Rb7 {[%clk 0:00:14]}  Rc5 {[%clk 0:00:05]} 55. Rf3 {[%clk 0:00:14]}  Rd5 {[%clk 0:00:05]} 56. Rff7 {[%clk 0:00:15]}  Rg5 {[%clk 0:00:05]} 57. Kf4 {[%clk 0:00:13]}  Kg8 {[%clk 0:00:05]} 58. Rfc7 {[%clk 0:00:12]}  Kh7 {[%clk 0:00:05]} 59. Rf7 {[%clk 0:00:10]}  Kg8 {[%clk 0:00:05]} 60. Rf5 {[%clk 0:00:10]} 1-0


[Site "https://www.chess.com"]

[Event "Titled Tuesday Blitz March 21 Late 2023"]
[White "Khandelwal, Ankush"]
[Black "Bullen, Alex"]
[WhiteFideId "413470"]
[BlackFideId "1801627"]
[WhiteElo "2263"]
[BlackElo "2088"]
[Result "1-0"]
[Round "08"]
[TimeControl "180+2"]
[Date "2023.03.21"]
[WhiteClock "0:01:04"]
[BlackClock "0:00:36"]

1. e4 {[%clk 0:03:00]}  c6 {[%clk 0:02:57]} 2. d4 {[%clk 0:02:59]}  d5 {[%clk 0:02:57]} 3. e5 {[%clk 0:02:56]}  Bf5 {[%clk 0:02:57]} 4. Nf3 {[%clk 0:02:51]}  e6 {[%clk 0:02:57]} 5. Be2 {[%clk 0:02:49]}  Ne7 {[%clk 0:02:57]} 6. O-O {[%clk 0:02:46]}  h6 {[%clk 0:02:58]} 7. Nbd2 {[%clk 0:02:39]}  Nd7 {[%clk 0:02:58]} 8. Nb3 {[%clk 0:02:36]}  g5 {[%clk 0:02:59]} 9. Ne1 {[%clk 0:02:30]}  c5 {[%clk 0:02:54]} 10. Nxc5 {[%clk 0:02:26]}  Nxc5 {[%clk 0:02:53]} 11. dxc5 {[%clk 0:02:27]}  Qc7 {[%clk 0:02:52]} 12. Nd3 {[%clk 0:01:57]}  Nc6 {[%clk 0:02:50]} 13. f4 {[%clk 0:01:57]}  O-O-O {[%clk 0:02:26]} 14. b4 {[%clk 0:01:44]}  Nxb4 {[%clk 0:02:12]} 15. Nxb4 {[%clk 0:01:40]}  Bxc5+ {[%clk 0:01:55]} 16. Kh1 {[%clk 0:01:40]}  Bxb4 {[%clk 0:01:55]} 17. Bd3 {[%clk 0:01:28]}  Be4 {[%clk 0:01:48]} 18. Qe2 {[%clk 0:01:21]}  Bxd3 {[%clk 0:01:35]} 19. cxd3 {[%clk 0:01:22]}  Kb8 {[%clk 0:01:25]} 20. Rb1 {[%clk 0:01:17]}  Ba5 {[%clk 0:01:21]} 21. f5 {[%clk 0:01:15]}  Rc8 {[%clk 0:01:11]} 22. Ba3 {[%clk 0:01:14]}  Qc2 {[%clk 0:00:58]} 23. Bd6+ {[%clk 0:01:11]}  Ka8 {[%clk 0:00:54]} 24. Qh5 {[%clk 0:01:07]}  Qxd3 {[%clk 0:00:44]} 25. Qxf7 {[%clk 0:01:05]}  exf5 {[%clk 0:00:36]} 26. Qxb7# {[%clk 0:01:04]} 1-0


[Site "https://www.chess.com"]

[Event "Titled Tuesday Blitz March 21 Late 2023"]
[White "Gonzalez, Francisco Silva"]
[Black "ilya2700"]
[WhiteFideId "1512285"]
[WhiteElo "2074"]
[BlackElo "2160"]
[Result "0-1"]
[Round "08"]
[TimeControl "180+2"]
[Date "2023.03.21"]
[WhiteClock "0:00:35"]
[BlackClock "0:00:06"]

1. d4 {[%clk 0:02:49]}  Nf6 {[%clk 0:02:57]} 2. c4 {[%clk 0:02:46]}  e6 {[%clk 0:02:58]} 3. Nc3 {[%clk 0:02:45]}  Bb4 {[%clk 0:02:57]} 4. a3 {[%clk 0:02:45]}  Bxc3+ {[%clk 0:02:56]} 5. bxc3 {[%clk 0:02:46]}  d5 {[%clk 0:02:56]} 6. e3 {[%clk 0:02:47]}  O-O {[%clk 0:02:56]} 7. Bd3 {[%clk 0:02:47]}  b6 {[%clk 0:02:53]} 8. Ne2 {[%clk 0:02:46]}  Bb7 {[%clk 0:02:54]} 9. f3 {[%clk 0:02:45]}  Nbd7 {[%clk 0:02:51]} 10. cxd5 {[%clk 0:02:44]}  exd5 {[%clk 0:02:51]} 11. O-O {[%clk 0:02:44]}  c5 {[%clk 0:02:51]} 12. Bd2 {[%clk 0:02:44]}  Re8 {[%clk 0:02:48]} 13. Qe1 {[%clk 0:02:43]}  Qc8 {[%clk 0:02:43]} 14. Qf2 {[%clk 0:02:38]}  Ba6 {[%clk 0:02:42]} 15. Bxa6 {[%clk 0:02:38]}  Qxa6 {[%clk 0:02:42]} 16. Ng3 {[%clk 0:02:38]}  cxd4 {[%clk 0:02:36]} 17. exd4 {[%clk 0:02:33]}  Re6 {[%clk 0:02:31]} 18. a4 {[%clk 0:02:29]}  Rae8 {[%clk 0:02:31]} 19. Rfe1 {[%clk 0:02:25]}  Rxe1+ {[%clk 0:02:15]} 20. Bxe1 {[%clk 0:02:24]}  Qc4 {[%clk 0:01:58]} 21. Bd2 {[%clk 0:02:23]}  a5 {[%clk 0:01:57]} 22. Qf1 {[%clk 0:02:14]}  Qb3 {[%clk 0:01:38]} 23. Qd1 {[%clk 0:02:11]}  Qxd1+ {[%clk 0:01:37]} 24. Rxd1 {[%clk 0:02:10]}  Re6 {[%clk 0:01:36]} 25. Kf2 {[%clk 0:02:07]}  Ne8 {[%clk 0:01:37]} 26. Rb1 {[%clk 0:02:04]}  Rc6 {[%clk 0:01:34]} 27. Nf5 {[%clk 0:02:03]}  Kf8 {[%clk 0:01:32]} 28. g4 {[%clk 0:02:02]}  Rc4 {[%clk 0:01:25]} 29. Ra1 {[%clk 0:01:56]}  f6 {[%clk 0:01:23]} 30. Ne3 {[%clk 0:01:56]}  Rc6 {[%clk 0:01:20]} 31. Nxd5 {[%clk 0:01:56]}  Nd6 {[%clk 0:01:21]} 32. Ne3 {[%clk 0:01:50]}  Kf7 {[%clk 0:01:12]} 33. Ke2 {[%clk 0:01:47]}  Nf8 {[%clk 0:01:06]} 34. d5 {[%clk 0:01:39]}  Rc5 {[%clk 0:01:05]} 35. Kd3 {[%clk 0:01:39]}  Ng6 {[%clk 0:01:04]} 36. c4 {[%clk 0:01:33]}  Ne5+ {[%clk 0:01:04]} 37. Ke2 {[%clk 0:01:31]}  Nexc4 {[%clk 0:01:00]} 38. Rb1 {[%clk 0:01:29]}  g5 {[%clk 0:00:37]} 39. Bc1 {[%clk 0:01:15]}  Kg6 {[%clk 0:00:34]} 40. Kd3 {[%clk 0:01:13]}  Nxe3 {[%clk 0:00:33]} 41. Bxe3 {[%clk 0:01:11]}  Rxd5+ {[%clk 0:00:33]} 42. Ke2 {[%clk 0:01:11]}  Nc4 {[%clk 0:00:34]} 43. Rc1 {[%clk 0:01:06]}  Nxe3 {[%clk 0:00:30]} 44. Kxe3 {[%clk 0:01:07]}  b5 {[%clk 0:00:30]} 45. axb5 {[%clk 0:01:06]}  Rxb5 {[%clk 0:00:31]} 46. Rc7 {[%clk 0:01:05]}  a4 {[%clk 0:00:30]} 47. Ra7 {[%clk 0:01:04]}  Rb4 {[%clk 0:00:30]} 48. Kf2 {[%clk 0:01:04]}  h5 {[%clk 0:00:29]} 49. Kg3 {[%clk 0:01:01]}  h4+ {[%clk 0:00:17]} 50. Kg2 {[%clk 0:01:00]}  Rf4 {[%clk 0:00:15]} 51. Kf2 {[%clk 0:00:55]}  Kh6 {[%clk 0:00:14]} 52. Kg2 {[%clk 0:00:53]}  Kg6 {[%clk 0:00:14]} 53. Rb7 {[%clk 0:00:51]}  f5 {[%clk 0:00:13]} 54. Rb6+ {[%clk 0:00:51]}  Kf7 {[%clk 0:00:14]} 55. h3 {[%clk 0:00:50]}  fxg4 {[%clk 0:00:09]} 56. hxg4 {[%clk 0:00:49]}  h3+ {[%clk 0:00:08]} 57. Kg3 {[%clk 0:00:40]}  h2 {[%clk 0:00:08]} 58. Rb1 {[%clk 0:00:41]}  a3 {[%clk 0:00:06]} 59. Kg2 {[%clk 0:00:39]}  a2 {[%clk 0:00:05]} 60. Ra1 {[%clk 0:00:39]}  Ra4 {[%clk 0:00:06]} 61. Kxh2 {[%clk 0:00:38]}  Ke6 {[%clk 0:00:06]} 62. Kg3 {[%clk 0:00:39]}  Kd5 {[%clk 0:00:07]} 63. f4 {[%clk 0:00:38]}  Ra3+ {[%clk 0:00:07]} 64. Kf2 {[%clk 0:00:38]}  gxf4 {[%clk 0:00:08]} 65. Rd1+ {[%clk 0:00:36]}  Ke5 {[%clk 0:00:08]} 66. Ra1 {[%clk 0:00:36]}  Kf6 {[%clk 0:00:08]} 67. Ke2 {[%clk 0:00:36]}  Kg5 {[%clk 0:00:09]} 68. Kd2 {[%clk 0:00:36]}  Kxg4 {[%clk 0:00:09]} 69. Rg1+ {[%clk 0:00:35]}  Kf5 {[%clk 0:00:08]} 70. Ra1 {[%clk 0:00:36]}  f3 {[%clk 0:00:09]} 71. Kc2 {[%clk 0:00:37]}  Kf4 {[%clk 0:00:08]} 72. Kb2 {[%clk 0:00:37]}  Ra8 {[%clk 0:00:09]} 73. Kb3 {[%clk 0:00:36]}  f2 {[%clk 0:00:08]} 74. Kb2 {[%clk 0:00:36]}  Kf3 {[%clk 0:00:08]} 75. Kc2 {[%clk 0:00:35]}  Kg2 {[%clk 0:00:08]} 76. Kb3 {[%clk 0:00:35]}  f1=Q {[%clk 0:00:07]} 77. Rxa2+ {[%clk 0:00:35]}  Rxa2 {[%clk 0:00:06]} 78. Kc3 {[%clk 0:00:36]}  Qc1+ {[%clk 0:00:04]} 79. Kd3 {[%clk 0:00:36]}  Rd2+ {[%clk 0:00:04]} 80. Ke4 {[%clk 0:00:35]}  Qe1+ {[%clk 0:00:05]} 81. Kf4 {[%clk 0:00:35]}  Rf2+ {[%clk 0:00:06]} 0-1


[Site "https://www.chess.com"]

[Event "Titled Tuesday Blitz March 21 Late 2023"]
[White "chessjazda"]
[Black "Baskakov, Egor"]
[BlackFideId "24197866"]
[WhiteElo "2358"]
[BlackElo "2212"]
[Result "0-1"]
[Round "08"]
[TimeControl "180+2"]
[Date "2023.03.21"]
[WhiteClock "0:00:01"]
[BlackClock "0:00:20"]

1. e4 {[%clk 0:02:56]}  c5 {[%clk 0:02:59]} 2. f4 {[%clk 0:02:53]}  Nc6 {[%clk 0:02:59]} 3. Nf3 {[%clk 0:02:53]}  g6 {[%clk 0:02:59]} 4. Bc4 {[%clk 0:02:46]}  Bg7 {[%clk 0:02:59]} 5. d3 {[%clk 0:02:46]}  e6 {[%clk 0:03:00]} 6. e5 {[%clk 0:02:44]}  Nge7 {[%clk 0:03:00]} 7. Nc3 {[%clk 0:02:43]}  O-O {[%clk 0:03:01]} 8. O-O {[%clk 0:02:42]}  d5 {[%clk 0:03:01]} 9. exd6 {[%clk 0:02:42]}  Nf5 {[%clk 0:03:02]} 10. Ne4 {[%clk 0:02:33]}  Nxd6 {[%clk 0:03:00]} 11. Nxd6 {[%clk 0:02:33]}  Qxd6 {[%clk 0:03:01]} 12. c3 {[%clk 0:02:31]}  b6 {[%clk 0:03:01]} 13. Be3 {[%clk 0:02:28]}  Bb7 {[%clk 0:03:01]} 14. Qe2 {[%clk 0:02:28]}  Rad8 {[%clk 0:03:01]} 15. Rad1 {[%clk 0:02:28]}  Qc7 {[%clk 0:02:57]} 16. a4 {[%clk 0:02:23]}  Rd7 {[%clk 0:02:55]} 17. Ng5 {[%clk 0:02:16]}  Rfd8 {[%clk 0:02:51]} 18. Rd2 {[%clk 0:02:03]}  Na5 {[%clk 0:02:52]} 19. Ba2 {[%clk 0:02:03]}  Bd5 {[%clk 0:02:52]} 20. Bxd5 {[%clk 0:02:01]}  Rxd5 {[%clk 0:02:50]} 21. Ne4 {[%clk 0:01:55]}  Qd7 {[%clk 0:02:45]} 22. Nf2 {[%clk 0:01:49]}  Qxa4 {[%clk 0:02:44]} 23. Qf3 {[%clk 0:01:41]}  Qc6 {[%clk 0:02:19]} 24. Re2 {[%clk 0:01:40]}  R5d7 {[%clk 0:02:14]} 25. Qxc6 {[%clk 0:01:28]}  Nxc6 {[%clk 0:02:15]} 26. Ra1 {[%clk 0:01:28]}  Na5 {[%clk 0:02:08]} 27. g3 {[%clk 0:01:25]}  h5 {[%clk 0:01:58]} 28. Kg2 {[%clk 0:01:24]}  Bf6 {[%clk 0:01:48]} 29. Ra4 {[%clk 0:01:24]}  Kg7 {[%clk 0:01:46]} 30. Bxc5 {[%clk 0:01:24]}  Nb3 {[%clk 0:01:40]} 31. Be3 {[%clk 0:01:19]}  Be7 {[%clk 0:01:37]} 32. h3 {[%clk 0:01:12]}  Bc5 {[%clk 0:01:37]} 33. d4 {[%clk 0:01:02]}  Be7 {[%clk 0:01:36]} 34. Nd3 {[%clk 0:01:00]}  Bd6 {[%clk 0:01:33]} 35. Ne5 {[%clk 0:00:58]}  Bxe5 {[%clk 0:01:32]} 36. fxe5 {[%clk 0:00:59]}  Na5 {[%clk 0:01:31]} 37. Bg5 {[%clk 0:00:58]}  Rc8 {[%clk 0:01:31]} 38. Bf6+ {[%clk 0:00:59]}  Kg8 {[%clk 0:01:30]} 39. g4 {[%clk 0:00:56]}  Nc6 {[%clk 0:01:16]} 40. gxh5 {[%clk 0:00:53]}  gxh5 {[%clk 0:01:17]} 41. Kf3 {[%clk 0:00:51]}  Kh7 {[%clk 0:01:17]} 42. Rg2 {[%clk 0:00:49]}  Rg8 {[%clk 0:01:17]} 43. Rxg8 {[%clk 0:00:49]}  Kxg8 {[%clk 0:01:18]} 44. Ra1 {[%clk 0:00:49]}  Ne7 {[%clk 0:01:18]} 45. Rg1+ {[%clk 0:00:48]}  Ng6 {[%clk 0:01:17]} 46. Rg5 {[%clk 0:00:44]}  h4 {[%clk 0:01:15]} 47. Rg4 {[%clk 0:00:41]}  b5 {[%clk 0:01:15]} 48. Bxh4 {[%clk 0:00:40]}  b4 {[%clk 0:01:07]} 49. Bf6 {[%clk 0:00:39]}  bxc3 {[%clk 0:01:07]} 50. bxc3 {[%clk 0:00:38]}  Rc7 {[%clk 0:01:08]} 51. Ke4 {[%clk 0:00:31]}  Rxc3 {[%clk 0:01:08]} 52. h4 {[%clk 0:00:32]}  Rh3 {[%clk 0:01:07]} 53. d5 {[%clk 0:00:31]}  exd5+ {[%clk 0:01:08]} 54. Kxd5 {[%clk 0:00:31]}  Kh7 {[%clk 0:01:03]} 55. Rg5 {[%clk 0:00:24]}  Kh6 {[%clk 0:00:54]} 56. Rg4 {[%clk 0:00:24]}  Kh5 {[%clk 0:00:48]} 57. Ra4 {[%clk 0:00:19]}  Nxh4 {[%clk 0:00:41]} 58. Bxh4 {[%clk 0:00:18]}  Rxh4 {[%clk 0:00:42]} 59. Rxa7 {[%clk 0:00:18]}  Kg6 {[%clk 0:00:41]} 60. e6 {[%clk 0:00:16]}  f5 {[%clk 0:00:24]} 61. e7 {[%clk 0:00:15]}  Re4 {[%clk 0:00:24]} 62. Kd6 {[%clk 0:00:09]}  Kf6 {[%clk 0:00:21]} 63. Ra3 {[%clk 0:00:05]}  Rxe7 {[%clk 0:00:20]} 64. Rf3 {[%clk 0:00:03]}  Re1 {[%clk 0:00:20]} 65. Kd5 {[%clk 0:00:03]}  Kg5 {[%clk 0:00:20]} 66. Kd4 {[%clk 0:00:02]}  f4 {[%clk 0:00:20]} 67. Ra3 {[%clk 0:00:01]}  Kg4 {[%clk 0:00:20]} 68. Ra8 {[%clk 0:00:01]}  Kf3 {[%clk 0:00:20]} 69. Rg8 {[%clk 0:00:01]}  Re7 {[%clk 0:00:20]} 70. Kc3 {[%clk 0:00:01]}  Kf2 {[%clk 0:00:20]} 71. Kd2 {[%clk 0:00:01]}  f3 {[%clk 0:00:20]} 0-1


[Site "https://www.chess.com"]